fUST/lending_fUST_20250519
["ID","MTS","AMOUNT","RATE_DAILY","PERIOD"]
[361520446,1747596633593,-450.0,0.00013698,2]
[361520447,1747596633602,-400.0,0.00013698,2]
[361520448,1747596633611,-450.0,0.00013698,2]
[361520449,1747596633625,-400.0,0.00013698,2]
[361520450,1747596633634,-400.0,0.00013698,2]
[361520451,1747596633643,-400.0,0.00013698,2]
[361520452,1747596633653,-450.0,0.00013698,2]
[361520453,1747596633663,-450.0,0.00013698,2]
[361520454,1747596633673,-400.0,0.00013698,2]
[361520455,1747596633682,-450.0,0.00013698,2]
[361520456,1747596633691,-450.0,0.00013698,2]
[361520457,1747596633702,-574.440394,0.00013698,2]
[361520458,1747596633711,-400.0,0.00013698,2]
[361520459,1747596633721,-450.0,0.00013698,2]
[361520460,1747596633730,-450.0,0.00013698,2]
[361520461,1747596633739,-400.0,0.00013698,2]
[361520462,1747596633749,-450.0,0.00013698,2]
[361520463,1747596633758,-500.0,0.00013698,2]
[361520464,1747596633768,-450.0,0.00013698,2]
[361520465,1747596633777,-450.0,0.00013698,2]
[361520466,1747596633787,-442.89794618,0.00013698,2]
[361520467,1747596633797,-931.71,0.00013698,2]
[361520468,1747596633807,-400.0,0.00013698,2]
[361520469,1747596633817,-450.0,0.00013698,2]
[361520470,1747596633827,-400.0,0.00013698,2]
[361520471,1747596633838,-450.0,0.00013698,2]
[361520472,1747596633848,-400.0,0.00013698,2]
[361520473,1747596633859,-450.0,0.00013698,2]
[361520474,1747596633868,-450.0,0.00013698,2]
[361520475,1747596633878,-450.0,0.00013698,2]
[361520476,1747596633888,-450.0,0.00013698,2]
[361520477,1747596633897,-450.0,0.00013698,2]
[361520479,1747596633906,-450.0,0.00013698,2]
[361520480,1747596633916,-450.0,0.00013698,2]
[361520481,1747596633925,-500.0,0.00013698,2]
[361520482,1747596633934,-400.0,0.00013698,2]
[361520484,1747596633944,-450.0,0.00013698,2]
[361520487,1747596633954,-400.0,0.00013698,2]
[361520489,1747596633963,-450.0,0.00013698,2]
[361520491,1747596633972,-500.0,0.00013698,2]
[361520493,1747596633983,-409.85001112,0.00013698,2]
[361520495,1747596633993,-550.0,0.00013698,2]
[361520497,1747596634002,-450.0,0.00013698,2]
[361520499,1747596634012,-450.0,0.00013698,2]
[361520501,1747596634022,-204.02194693,0.00013698,2]
[361520503,1747596634031,-450.0,0.00013698,2]
[361520505,1747596634040,-450.0,0.00013698,2]
[361520507,1747596634050,-396.98859953,0.00013698,2]
[361520509,1747596634066,-153.01140047,0.00013698,2]
[361520511,1747596634075,-400.0,0.00013698,2]
[361520513,1747596634085,-450.0,0.00013698,2]
[361520516,1747596634097,-400.0,0.00013698,2]
[361520518,1747596634106,-537.38472747,0.00013698,2]
[361520520,1747596634117,-500.0,0.00013698,2]
[361520522,1747596634128,-511.59437136,0.00013698,2]
[361520524,1747596634137,-200.0,0.00013698,2]
[361520526,1747596634146,-484.61416048,0.00013698,2]
[361520528,1747596634156,-275.58,0.00013698,2]
[361520530,1747596634165,-450.0,0.00013698,2]
[361520532,1747596634175,-356.96,0.00013698,2]
[361520534,1747596634184,-450.0,0.00013698,2]
[361520536,1747596634194,-500.0,0.00013698,2]
[361520538,1747596634203,-450.0,0.00013698,2]
[361520540,1747596634213,-450.0,0.00013698,2]
[361520542,1747596634222,-450.0,0.00013698,2]
[361520544,1747596634231,-400.0,0.00013698,2]
[361520546,1747596634241,-450.0,0.00013698,2]
[361520548,1747596634251,-516.93947988,0.00013698,2]
[361520550,1747596634261,-450.0,0.00013698,2]
[361520552,1747596634271,-450.0,0.00013698,2]
[361520554,1747596634281,-313.04,0.00013698,2]
[361520556,1747596634290,-566.66,0.00013698,2]
[361520558,1747596634299,-450.0,0.00013698,2]
[361520560,1747596634309,-450.0,0.00013698,2]
[361520562,1747596634318,-450.0,0.00013698,2]
[361520564,1747596634328,-510.46343238,0.00013698,2]
[361520566,1747596634337,-500.65416939,0.00013698,2]
[361520568,1747596634347,-592.08,0.00013698,2]
[361520570,1747596634356,-235.2246693,0.00013698,2]
[361520572,1747596634366,-450.0,0.00013698,2]
[361520574,1747596634375,-450.0,0.00013698,2]
[361520576,1747596634384,-500.0,0.00013698,2]
[361520578,1747596634393,-450.0,0.00013698,2]
[361520580,1747596634403,-450.0,0.00013698,2]
[361520582,1747596634412,-450.0,0.00013698,2]
[361520584,1747596634421,-164.02702515,0.00013698,2]
[361520586,1747596634430,-400.0,0.00013698,2]
[361520588,1747596634439,-450.0,0.00013698,2]
[361520590,1747596634448,-450.0,0.00013698,2]
[361520592,1747596634457,-195.56652612,0.00013698,2]
[361520594,1747596634467,-450.0,0.00013698,2]
[361520596,1747596634476,-450.0,0.00013698,2]
[361520598,1747596634485,-450.0,0.00013698,2]
[361520600,1747596634494,-450.0,0.00013698,2]
[361520602,1747596634503,-450.0,0.00013698,2]
[361520604,1747596634513,-500.0,0.00013698,2]
[361520606,1747596634523,-400.0,0.00013698,2]
[361520608,1747596634532,-472.24,0.00013698,2]
[361520610,1747596634542,-450.0,0.00013698,2]
[361520612,1747596634551,-450.0,0.00013698,2]
[361520614,1747596634560,-500.0,0.00013698,2]
[361520616,1747596634571,-294.11595402,0.00013698,2]
[361520618,1747596634580,-450.0,0.00013698,2]
[361520620,1747596634590,-461.28,0.00013698,2]
[361520622,1747596634599,-450.0,0.00013698,2]
[361520624,1747596634608,-400.0,0.00013698,2]
[361520626,1747596634622,-450.0,0.00013698,2]
[361520628,1747596634632,-450.0,0.00013698,2]
[361520630,1747596634641,-450.0,0.00013698,2]
[361520632,1747596634651,-400.0,0.00013698,2]
[361520634,1747596634660,-431.60979836,0.00013698,2]
[361520636,1747596634670,-450.0,0.00013698,2]
[361520638,1747596634679,-513.97387247,0.00013698,2]
[361520640,1747596634688,-240.83148833,0.00013698,2]
[361520642,1747596634697,-400.0,0.00013698,2]
[361520644,1747596634707,-450.0,0.00013698,2]
[361520646,1747596634716,-450.0,0.00013698,2]
[361520648,1747596634726,-500.86202631,0.00013698,2]
[361520650,1747596634735,-213.38235004,0.00013698,2]
[361520652,1747596634744,-450.0,0.00013698,2]
[361520654,1747596634754,-450.0,0.00013698,2]
[361520656,1747596634763,-450.0,0.00013698,2]
[361520658,1747596634773,-400.0,0.00013698,2]
[361520660,1747596634782,-152.08226304,0.00013698,2]
[361520663,1747596634795,-450.0,0.00013698,2]
[361520665,1747596634804,-400.0,0.00013698,2]
[361520667,1747596634814,-400.0,0.00013698,2]
[361520669,1747596634824,-450.0,0.00013698,2]
[361520671,1747596634833,-484.55,0.00013698,2]
[361520673,1747596634842,-450.0,0.00013698,2]
[361520675,1747596634851,-450.0,0.00013698,2]
[361520677,1747596634860,-450.0,0.00013698,2]
[361520679,1747596634869,-450.0,0.00013698,2]
[361520681,1747596634880,-400.0,0.00013698,2]
[361520683,1747596634890,-450.0,0.00013698,2]
[361520685,1747596634899,-450.0,0.00013698,2]
[361520687,1747596634908,-153.2477313,0.00013698,2]
[361520689,1747596634918,-400.0,0.00013698,2]
[361520691,1747596634928,-421.79153062,0.00013698,2]
[361521052,1747596638458,-300.0,0.00012787,2]
[361521054,1747596638468,-28.20846938,0.00013698,2]
[361521056,1747596638478,-450.0,0.00013698,2]
[361521058,1747596638487,-298.95621755,0.00013698,2]
[361521060,1747596638496,-500.0,0.00013698,2]
[361521062,1747596638505,-450.0,0.00013698,2]
[361521064,1747596638515,-337.06370267,0.00013698,2]
[361521562,1747596646629,-300.0,0.00012659,2]
[361521564,1747596646640,-473.8,0.00013697,2]
[361521975,1747597832640,-300.0,0.00012327,2]
[361521977,1747597832650,-255.0,0.00012327,2]
[361521980,1747597832660,-1200.0,0.00012327,2]
[361521982,1747597832670,-24900.0,0.00012328,2]
[361521984,1747597832679,-1200.0,0.00012649,2]
[361521986,1747597832689,-652.84442803,0.00013434,2]
[361521988,1747597832699,-999.14133713,0.00013499,2]
[361521990,1747597832708,-420.0,0.00013528,2]
[361521992,1747597832717,-480.0,0.00013559,2]
[361521994,1747597832726,-500.0,0.00013599,2]
[361521996,1747597832736,-199.48801978,0.00013599,2]
[361521998,1747597832746,-500.0,0.00013599,2]
[361522000,1747597832755,-500.87172661,0.00013599,2]
[361522002,1747597832764,-548.99482742,0.00013599,2]
[361522004,1747597832773,-206.01237589,0.00013599,2]
[361522006,1747597832782,-388.23054439,0.00013599,2]
[361522008,1747597832792,-500.0,0.00013599,2]
[361522010,1747597832801,-500.0,0.00013599,2]
[361522012,1747597832810,-183.12338653,0.00013599,2]
[361522014,1747597832819,-500.0,0.00013599,2]
[361522016,1747597832829,-500.0,0.00013599,2]
[361522019,1747597832841,-500.0,0.00013599,2]
[361522022,1747597832850,-500.0,0.00013599,2]
[361522025,1747597832860,-414.08323676,0.000136,2]
[361522028,1747597832881,-1104.72046384,0.000136,2]
[361522031,1747597832893,-48481.1962994,0.000136,2]
[361522034,1747597832902,-151.0,0.0001369,2]
[361522037,1747597832911,-207.4,0.0001369,2]
[361522040,1747597832921,-190.60081533,0.00013697,2]
[361522043,1747597832936,-108.20318467,0.00013697,2]
[361522045,1747597832947,-450.0,0.00013698,2]
[361522047,1747597832956,-450.0,0.00013698,2]
[361522049,1747597832965,-450.0,0.00013698,2]
[361522052,1747597832975,-202.0,0.00013698,2]
[361522055,1747597832984,-450.0,0.00013698,2]
[361522058,1747597832993,-450.0,0.00013698,2]
[361522061,1747597833003,-487.4,0.00013698,2]
[361522064,1747597833012,-450.0,0.00013698,2]
[361522067,1747597833021,-450.0,0.00013698,2]
[361522070,1747597833030,-450.0,0.00013698,2]
[361522073,1747597833039,-450.0,0.00013698,2]
[361522076,1747597833049,-450.0,0.00013698,2]
[361522079,1747597833058,-450.0,0.00013698,2]
[361522082,1747597833068,-450.0,0.00013698,2]
[361522085,1747597833077,-450.0,0.00013698,2]
[361522088,1747597833086,-505.16457696,0.00013698,2]
[361522091,1747597833096,-450.0,0.00013698,2]
[361522094,1747597833108,-450.0,0.00013698,2]
[361522097,1747597833118,-550.0,0.00013698,2]
[361522099,1747597833127,-450.0,0.00013698,2]
[361522101,1747597833137,-450.0,0.00013698,2]
[361522103,1747597833146,-450.0,0.00013698,2]
[361522105,1747597833157,-450.0,0.00013698,2]
[361522107,1747597833166,-450.0,0.00013698,2]
[361522109,1747597833176,-162.83,0.00013698,2]
[361522111,1747597833187,-450.0,0.00013698,2]
[361522113,1747597833196,-450.0,0.00013698,2]
[361522115,1747597833206,-450.0,0.00013698,2]
[361522117,1747597833215,-373.55,0.00013698,2]
[361522119,1747597833225,-450.0,0.00013698,2]
[361522121,1747597833235,-450.0,0.00013698,2]
[361522123,1747597833244,-450.0,0.00013698,2]
[361522124,1747597833254,-160.0,0.00013698,2]
[361522127,1747597833264,-486.52,0.00013698,2]
[361522128,1747597833275,-450.0,0.00013698,2]
[361522130,1747597833285,-450.0,0.00013698,2]
[361522132,1747597833294,-450.0,0.00013698,2]
[361522134,1747597833303,-450.0,0.00013698,2]
[361522136,1747597833313,-450.0,0.00013698,2]
[361522139,1747597833322,-450.0,0.00013698,2]
[361522140,1747597833332,-450.0,0.00013698,2]
[361522142,1747597833345,-450.0,0.00013698,2]
[361522144,1747597833355,-450.0,0.00013698,2]
[361522146,1747597833366,-450.0,0.00013698,2]
[361522148,1747597833375,-450.0,0.00013698,2]
[361522150,1747597833385,-450.0,0.00013698,2]
[361522152,1747597833395,-452.56,0.00013698,2]
[361522154,1747597833406,-450.0,0.00013698,2]
[361522156,1747597833416,-450.0,0.00013698,2]
[361522158,1747597833426,-450.0,0.00013698,2]
[361522160,1747597833436,-450.0,0.00013698,2]
[361522162,1747597833446,-450.0,0.00013698,2]
[361522164,1747597833456,-450.0,0.00013698,2]
[361522166,1747597833466,-450.0,0.00013698,2]
[361522168,1747597833477,-450.0,0.00013698,2]
[361522170,1747597833487,-450.0,0.00013698,2]
[361522172,1747597833496,-450.0,0.00013698,2]
[361522174,1747597833506,-474.28,0.00013698,2]
[361522176,1747597833515,-450.0,0.00013698,2]
[361522178,1747597833526,-450.0,0.00013698,2]
[361522180,1747597833535,-450.0,0.00013698,2]
[361522182,1747597833545,-450.0,0.00013698,2]
[361522184,1747597833555,-517.75668702,0.00013698,2]
[361522186,1747597833565,-450.0,0.00013698,2]
[361522188,1747597833576,-450.0,0.00013698,2]
[361522190,1747597833587,-450.0,0.00013698,2]
[361522192,1747597833600,-450.0,0.00013698,2]
[361522194,1747597833610,-450.0,0.00013698,2]
[361522196,1747597833620,-450.0,0.00013698,2]
[361522199,1747597833630,-450.0,0.00013698,2]
[361522201,1747597833640,-464.36,0.00013698,2]
[361522203,1747597833649,-450.0,0.00013698,2]
[361522205,1747597833659,-450.0,0.00013698,2]
[361522207,1747597833668,-450.0,0.00013698,2]
[361522209,1747597833677,-300.22,0.00013698,2]
[361522211,1747597833687,-450.0,0.00013698,2]
[361522213,1747597833696,-450.0,0.00013698,2]
[361522215,1747597833706,-450.0,0.00013698,2]
[361522217,1747597833715,-450.0,0.00013698,2]
[361522219,1747597833724,-450.0,0.00013698,2]
[361522221,1747597833734,-176.41573213,0.00013698,2]
[361522223,1747597833743,-450.0,0.00013698,2]
[361522224,1747597833752,-400.0,0.00013698,2]
[361522226,1747597833762,-151.0,0.00013698,2]
[361522228,1747597833771,-400.0,0.00013698,2]
[361522230,1747597833781,-450.0,0.00013698,2]
[361522233,1747597833790,-450.0,0.00013698,2]
[361522235,1747597833800,-450.0,0.00013698,2]
[361522236,1747597833809,-450.0,0.00013698,2]
[361522238,1747597833818,-450.0,0.00013698,2]
[361522240,1747597833828,-450.0,0.00013698,2]
[361522242,1747597833838,-400.0,0.00013698,2]
[361522245,1747597833850,-450.0,0.00013698,2]
[361522246,1747597833859,-450.0,0.00013698,2]
[361522248,1747597833868,-450.0,0.00013698,2]
[361522251,1747597833878,-4787.61,0.00013698,2]
[361522252,1747597833887,-450.0,0.00013698,2]
[361522254,1747597833897,-450.0,0.00013698,2]
[361522256,1747597833906,-400.0,0.00013698,2]
[361522259,1747597833916,-450.0,0.00013698,2]
[361522260,1747597833926,-450.0,0.00013698,2]
[361522263,1747597833936,-450.44,0.00013698,2]
[361522265,1747597833945,-450.0,0.00013698,2]
[361522267,1747597833955,-436.4,0.00013698,2]
[361522269,1747597833965,-639.01,0.00013698,2]
[361522271,1747597833975,-450.0,0.00013698,2]
[361522273,1747597833984,-450.0,0.00013698,2]
[361522275,1747597833993,-450.0,0.00013698,2]
[361522276,1747597834003,-170.63242253,0.00013698,2]
[361522279,1747597834012,-450.0,0.00013698,2]
[361522281,1747597834022,-450.0,0.00013698,2]
[361522282,1747597834031,-450.0,0.00013698,2]
[361522285,1747597834042,-450.0,0.00013698,2]
[361522287,1747597834051,-450.0,0.00013698,2]
[361522289,1747597834061,-450.0,0.00013698,2]
[361522291,1747597834070,-450.0,0.00013698,2]
[361522293,1747597834079,-1699.32,0.00013698,2]
[361522294,1747597834090,-450.0,0.00013698,2]
[361522297,1747597834100,-483.0,0.00013698,2]
[361522299,1747597834115,-450.0,0.00013698,2]
[361522300,1747597834125,-450.0,0.00013698,2]
[361522302,1747597834134,-450.0,0.00013698,2]
[361522304,1747597834144,-450.0,0.00013698,2]
[361522306,1747597834155,-558.14,0.00013698,2]
[361522323,1747597834303,-450.0,0.00013698,2]
[361522325,1747597834313,-450.0,0.00013698,2]
[361522327,1747597834323,-470.75,0.00013698,2]
[361522329,1747597834333,-450.0,0.00013698,2]
[361522331,1747597834343,-450.0,0.00013698,2]
[361522333,1747597834353,-450.0,0.00013698,2]
[361522335,1747597834362,-454.16,0.00013698,2]
[361522337,1747597834371,-450.0,0.00013698,2]
[361522339,1747597834380,-308.20615786,0.00013698,2]
[361522341,1747597834392,-692.61,0.00013698,2]
[361522343,1747597834402,-493.69,0.00013698,2]
[361522345,1747597834412,-450.0,0.00013698,2]
[361522348,1747597834421,-1110.32,0.00013698,2]
[361522350,1747597834430,-450.0,0.00013698,2]
[361522352,1747597834439,-715.56,0.00013698,2]
[361522354,1747597834449,-696.0,0.00013698,2]
[361522356,1747597834458,-450.0,0.00013698,2]
[361522358,1747597834467,-450.0,0.00013698,2]
[361522360,1747597834476,-450.0,0.00013698,2]
[361522362,1747597834485,-450.0,0.00013698,2]
[361522364,1747597834494,-557.6,0.00013698,2]
[361522366,1747597834503,-450.0,0.00013698,2]
[361522368,1747597834512,-2080.96,0.00013698,2]
[361522370,1747597834521,-450.0,0.00013698,2]
[361522372,1747597834530,-450.0,0.00013698,2]
[361522374,1747597834539,-450.0,0.00013698,2]
[361522376,1747597834548,-513.81,0.00013698,2]
[361522378,1747597834557,-450.0,0.00013698,2]
[361522380,1747597834566,-450.0,0.00013698,2]
[361522382,1747597834575,-637.16,0.00013698,2]
[361522384,1747597834584,-3243.8,0.00013698,2]
[361522386,1747597834597,-450.0,0.00013698,2]
[361522388,1747597834606,-450.0,0.00013698,2]
[361522390,1747597834616,-4330.15,0.00013698,2]
[361522392,1747597834625,-450.0,0.00013698,2]
[361522394,1747597834634,-450.0,0.00013698,2]
[361522396,1747597834643,-450.0,0.00013698,2]
[361522398,1747597834652,-450.0,0.00013698,2]
[361522400,1747597834661,-450.0,0.00013698,2]
[361522402,1747597834670,-507.90532716,0.00013698,2]
[361522404,1747597834679,-400.0,0.00013698,2]
[361522406,1747597834689,-450.0,0.00013698,2]
[361522408,1747597834698,-450.0,0.00013698,2]
[361522410,1747597834707,-450.0,0.00013698,2]
[361522412,1747597834716,-250.0,0.00013698,2]
[361522414,1747597834725,-766.2,0.00013698,2]
[361522416,1747597834734,-450.0,0.00013698,2]
[361522418,1747597834743,-450.0,0.00013698,2]
[361522420,1747597834751,-450.0,0.00013698,2]
[361522422,1747597834760,-892.89,0.00013698,2]
[361522424,1747597834769,-450.0,0.00013698,2]
[361522426,1747597834779,-450.0,0.00013698,2]
[361522428,1747597834788,-563.98,0.00013698,2]
[361522430,1747597834797,-2041.85,0.00013698,2]
[361522432,1747597834806,-450.0,0.00013698,2]
[361522434,1747597834815,-450.0,0.00013698,2]
[361522436,1747597834824,-450.0,0.00013698,2]
[361522438,1747597834832,-450.0,0.00013698,2]
[361522440,1747597834844,-1570.88,0.00013698,2]
[361522442,1747597834852,-450.0,0.00013698,2]
[361522444,1747597834861,-450.0,0.00013698,2]
[361522446,1747597834870,-450.0,0.00013698,2]
[361522448,1747597834879,-450.0,0.00013698,2]
[361522450,1747597834888,-242.01,0.00013698,2]
[361522452,1747597834896,-434.00373426,0.00013698,2]
[361522454,1747597834906,-450.0,0.00013698,2]
[361522456,1747597834916,-450.0,0.00013698,2]
[361522458,1747597834925,-450.0,0.00013698,2]
[361522460,1747597834934,-568.56982998,0.00013698,2]
[361522462,1747597834943,-400.0,0.00013698,2]
[361522464,1747597834951,-450.0,0.00013698,2]
[361522466,1747597834960,-450.0,0.00013698,2]
[361522468,1747597834969,-450.0,0.00013698,2]
[361522470,1747597834978,-450.0,0.00013698,2]
[361522472,1747597834987,-264.11,0.00013698,2]
[361522474,1747597834996,-450.0,0.00013698,2]
[361522476,1747597835005,-3188.02,0.00013698,2]
[361522478,1747597835014,-450.0,0.00013698,2]
[361522479,1747597835023,-250.13,0.00013698,2]
[361522482,1747597835036,-597.31,0.00013698,2]
[361522483,1747597835046,-450.0,0.00013698,2]
[361522486,1747597835056,-450.0,0.00013698,2]
[361522488,1747597835066,-361.06331254,0.00013698,2]
[361522490,1747597835075,-450.0,0.00013698,2]
[361522492,1747597835084,-450.0,0.00013698,2]
[361522494,1747597835094,-475.17,0.00013698,2]
[361522496,1747597835104,-718.49,0.00013698,2]
[361522498,1747597835115,-450.0,0.00013698,2]
[361522500,1747597835125,-450.0,0.00013698,2]
[361522502,1747597835135,-450.0,0.00013698,2]
[361522504,1747597835143,-450.0,0.00013698,2]
[361522506,1747597835153,-450.0,0.00013698,2]
[361522508,1747597835163,-450.0,0.00013698,2]
[361522509,1747597835172,-660.58,0.00013698,2]
[361522512,1747597835182,-450.0,0.00013698,2]
[361522514,1747597835191,-450.0,0.00013698,2]
[361522516,1747597835201,-450.0,0.00013698,2]
[361522518,1747597835210,-517.47,0.00013698,2]
[361522520,1747597835219,-881.86,0.00013698,2]
[361522522,1747597835227,-450.0,0.00013698,2]
[361522524,1747597835237,-450.0,0.00013698,2]
[361522526,1747597835246,-519.88,0.00013698,2]
[361522528,1747597835255,-450.0,0.00013698,2]
[361522530,1747597835266,-518.57,0.00013698,2]
[361522532,1747597835275,-450.0,0.00013698,2]
[361522534,1747597835284,-450.0,0.00013698,2]
[361522536,1747597835293,-450.0,0.00013698,2]
[361522538,1747597835302,-450.0,0.00013698,2]
[361522540,1747597835311,-450.0,0.00013698,2]
[361522542,1747597835320,-450.0,0.00013698,2]
[361522544,1747597835329,-450.0,0.00013698,2]
[361522546,1747597835338,-450.0,0.00013698,2]
[361522548,1747597835349,-450.0,0.00013698,2]
[361522550,1747597835358,-450.0,0.00013698,2]
[361522552,1747597835367,-452.03,0.00013698,2]
[361522554,1747597835375,-400.0,0.00013698,2]
[361522556,1747597835384,-450.0,0.00013698,2]
[361522558,1747597835393,-450.0,0.00013698,2]
[361522560,1747597835403,-450.0,0.00013698,2]
[361522562,1747597835412,-450.0,0.00013698,2]
[361522564,1747597835421,-185.8,0.00013698,2]
[361522566,1747597835430,-450.0,0.00013698,2]
[361522568,1747597835439,-450.0,0.00013698,2]
[361522570,1747597835449,-1309.23,0.00013698,2]
[361522572,1747597835458,-450.0,0.00013698,2]
[361522574,1747597835467,-450.0,0.00013698,2]
[361522576,1747597835476,-970.6,0.00013698,2]
[361522578,1747597835486,-450.0,0.00013698,2]
[361522580,1747597835495,-450.0,0.00013698,2]
[361522581,1747597835505,-450.0,0.00013698,2]
[361522583,1747597835515,-504.94,0.00013698,2]
[361522585,1747597835524,-450.0,0.00013698,2]
[361522587,1747597835534,-450.0,0.00013698,2]
[361522589,1747597835543,-450.0,0.00013698,2]
[361522591,1747597835552,-450.0,0.00013698,2]
[361522594,1747597835562,-799.37868306,0.00013698,2]
[361522596,1747597835579,-73.91131694,0.00013698,2]
[361522598,1747597835589,-389.66,0.00013698,2]
[361522600,1747597835600,-486.49,0.00013698,2]
[361522602,1747597835609,-450.0,0.00013698,2]
[361522604,1747597835618,-400.0,0.00013698,2]
[361522606,1747597835628,-450.0,0.00013698,2]
[361522608,1747597835637,-450.0,0.00013698,2]
[361522610,1747597835646,-575.81,0.00013698,2]
[361522612,1747597835655,-450.0,0.00013698,2]
[361522614,1747597835664,-450.0,0.00013698,2]
[361522616,1747597835673,-1171.07,0.00013698,2]
[361522618,1747597835681,-450.0,0.00013698,2]
[361522620,1747597835690,-450.0,0.00013698,2]
[361522622,1747597835699,-450.0,0.00013698,2]
[361522624,1747597835708,-751.12,0.00013698,2]
[361522626,1747597835717,-500.0,0.00013698,2]
[361522628,1747597835726,-872.117959,0.00013699,2]
[361522630,1747597835736,-238.937543,0.00013699,2]
[361522632,1747597835745,-363.3878261,0.000138,2]
[361522634,1747597835755,-158.0682864,0.000138,2]
[361522636,1747597835765,-308.1626434,0.000138,2]
[361522638,1747597835774,-569.6479192,0.000138,2]
[361522640,1747597835784,-800.0,0.00013804,2]
[361522642,1747597835793,-800.0,0.00013829,2]
[361522644,1747597835802,-800.0,0.00013833,2]
[361522646,1747597835812,-500.0,0.00013834,2]
[361522648,1747597835821,-500.0,0.00013834,2]
[361522650,1747597835831,-500.0,0.00013834,2]
[361522652,1747597835841,-456.83744867,0.00013834,2]
[361522654,1747597835850,-500.0,0.00013834,2]
[361522657,1747597835859,-500.0,0.00013834,2]
[361522659,1747597835868,-500.0,0.00013834,2]
[361522661,1747597835878,-500.0,0.00013834,2]
[361522663,1747597835887,-284.08220418,0.00013834,2]
[361522665,1747597835896,-500.0,0.00013834,2]
[361522667,1747597835905,-500.0,0.00013834,2]
[361522669,1747597835914,-500.0,0.00013834,2]
[361522671,1747597835924,-500.0,0.00013834,2]
[361522673,1747597835933,-500.0,0.00013834,2]
[361522675,1747597835942,-500.0,0.00013834,2]
[361522677,1747597835952,-500.0,0.00013834,2]
[361522679,1747597835962,-200.80414381,0.00013834,2]
[361522681,1747597835972,-425.28913945,0.00013834,2]
[361522683,1747597835982,-800.0,0.00013834,2]
[361522685,1747597835991,-151.0,0.00013835,2]
[361522687,1747597836000,-450.0,0.00013835,2]
[361522689,1747597836009,-532.96,0.00013835,2]
[361522691,1747597836018,-348.55,0.00013835,2]
[361522693,1747597836027,-274.69,0.00013835,2]
[361522695,1747597836035,-450.0,0.00013835,2]
[361522696,1747597836045,-151.0,0.00013835,2]
[361522698,1747597836054,-151.0,0.00013835,2]
[361522700,1747597836063,-239.965884,0.00013835,2]
[361522702,1747597836072,-450.0,0.00013835,2]
[361522704,1747597836081,-450.0,0.00013835,2]
[361522706,1747597836091,-450.0,0.00013835,2]
[361522708,1747597836100,-450.0,0.00013835,2]
[361522710,1747597836113,-450.0,0.00013835,2]
[361522712,1747597836122,-492.72456323,0.00013835,2]
[361522713,1747597836131,-450.0,0.00013835,2]
[361522714,1747597836140,-450.0,0.00013835,2]
[361522715,1747597836149,-450.0,0.00013835,2]